bitfinex/quotes_ETHUSD_20241207
["timestamp","ask_amount","ask_price","bid_price","bid_amount"]
[1733549941033,0.03933202,3994.8,3994.6,1.75236]
[1733549941942,1.04399194,3994.9,3994.6,1.75236]
[1733549942145,0.90493026,3994.8,3994.6,1.75236]
[1733549942373,0.03933202,3994.8,3994.3,1.75245]
[1733549943280,2.16378046,3994.7,3994.0,0.8309]
[1733549943475,0.8283,3994.5,3994.1,1.75257]
[1733549943859,0.03927805,3994.4,3994.3,1.75249]
[1733549945347,0.03927805,3994.4,3993.7,1.91331242]
[1733549945348,0.03927805,3994.4,3994.0,1.75259]
[1733549945853,0.03927805,3994.4,3993.8,1.7527]
[1733549946166,0.03927805,3994.4,3993.9,1.75266]
[1733549949076,0.86537517,3994.3,3993.9,1.75266]
[1733549949392,0.03909624,3994.2,3993.9,1.75266]
[1733549949599,1.87229194,3994.5,3993.9,1.75266]
[1733549949900,0.03906527,3994.1,3993.9,1.75266]
[1733549950065,1.87229194,3994.5,3993.9,1.75266]
[1733549950402,2.1635241,3994.4,3993.9,1.75266]
[1733549950572,0.86540964,3994.3,3993.9,1.75266]
[1733549950771,0.03909624,3994.2,3993.9,1.75266]
[1733549951075,1.87229194,3994.5,3993.9,1.75266]
[1733549951288,0.03906527,3994.1,3993.9,1.75266]
[1733549951598,0.0390343,3994.0,3993.9,1.75266]
[1733549951799,1.29816133,3994.4,3993.9,1.75266]
[1733549952010,0.03912722,3994.3,3993.9,1.75266]
[1733549952173,0.03912722,3994.3,3993.4,1.91331242]
[1733549952362,0.86549088,3994.2,3993.6,1.75277]
[1733549952565,0.03906527,3994.1,3993.6,1.75277]
[1733549952877,1.85439194,3994.3,3993.7,1.75275]
[1733549953098,0.03896436,3994.0,3993.7,1.75275]
[1733549953405,0.86546241,3994.2,3993.7,1.75275]
[1733549953406,0.03893339,3993.9,3993.7,1.75275]
[1733549953759,1.85439194,3994.3,3993.7,1.75275]
[1733549953960,1.26578187,3994.2,3993.7,1.75275]
[1733549954201,0.86554321,3994.1,3993.7,1.75275]
[1733549954407,0.03896436,3994.0,3993.7,1.75275]
[1733549954767,0.36119692,3994.2,3993.7,1.75275]
[1733549954980,0.90465918,3994.1,3993.7,1.75275]
[1733549955205,0.03899534,3994.1,3993.7,1.75275]
[1733549956460,0.86602921,3994.0,3993.7,1.75275]
[1733549956657,0.03899534,3994.1,3993.7,1.75275]
[1733549956857,0.03893339,3993.9,3993.7,1.75275]
[1733549957058,1.04399194,3994.2,3993.7,1.75275]
[1733549957308,0.03890241,3993.8,3993.7,1.75275]
[1733549957492,1.04399194,3994.2,3993.7,1.75275]
[1733549957803,2.16555275,3994.1,3993.7,1.75275]
[1733549958105,0.8662211,3994.0,3993.7,1.75275]
[1733549958258,0.03899534,3994.1,3993.7,1.75275]
[1733549958461,0.03893339,3993.9,3993.7,1.75275]
[1733549958706,1.04399194,3994.2,3993.7,1.75275]
[1733549958891,0.03890241,3993.8,3993.7,1.75275]
[1733549959205,0.03890241,3993.8,3993.3,1.08241242]
[1733549959376,1.04399194,3994.1,3993.5,1.75282]
[1733549959572,2.20450502,3994.0,3993.5,1.75282]
[1733549959774,0.86621626,3993.9,3993.5,1.75282]
[1733549960002,0.03890241,3993.8,3993.5,1.75282]
[1733549960209,1.04399194,3994.1,3993.6,1.7528]
[1733549960386,0.03887143,3993.7,3993.6,1.7528]
[1733549960578,1.04399194,3994.1,3993.6,1.7528]
[1733549960884,2.20381509,3994.0,3993.6,1.7528]
[1733549961071,0.86578056,3993.9,3993.6,1.7528]
[1733549961271,0.03896436,3994.0,3993.6,1.7528]
[1733549961497,0.03890241,3993.8,3993.6,1.7528]
[1733549961702,1.04399194,3994.1,3993.6,1.7528]
[1733549961872,0.03887143,3993.7,3993.6,1.7528]
[1733549962075,1.04399194,3994.1,3993.6,1.7528]
[1733549962306,0.03887143,3993.7,3993.6,1.7528]
[1733549962507,1.04399194,3994.1,3993.6,1.7528]
[1733549962806,3.20825269,3994.0,3993.6,1.7528]
[1733549963007,0.90463769,3993.9,3993.6,1.7528]
[1733549963309,0.03893339,3993.9,3993.6,1.7528]
[1733549963602,1.04399194,3994.1,3993.6,1.7528]
[1733549963800,2.20326537,3994.0,3993.6,1.7528]
[1733549964004,0.8657204,3993.9,3993.6,1.7528]
[1733549964188,0.03890241,3993.8,3993.6,1.7528]
[1733549964394,1.04399194,3994.1,3993.6,1.7528]
[1733549964603,2.20335666,3994.0,3993.6,1.7528]
[1733549964809,0.03896436,3994.0,3993.6,1.7528]
[1733549964999,0.86593897,3993.9,3993.6,1.7528]
[1733549965194,0.03890908,3993.8,3993.6,1.7528]
[1733549965394,1.04399194,3994.1,3993.6,1.7528]
[1733549965594,2.20386436,3994.0,3993.6,1.7528]
[1733549965797,0.86595733,3993.9,3993.6,1.7528]
[1733549966109,0.03890908,3993.8,3993.6,1.7528]
[1733549966485,1.04399194,3994.1,3993.6,1.7528]
[1733549966829,2.16492143,3994.0,3993.6,1.7528]
[1733549967009,0.86596857,3993.9,3993.6,1.7528]
[1733549967196,0.0389577,3994.0,3993.3,1.08241242]
[1733549967394,0.0389577,3994.0,3993.6,1.75277]
[1733549967600,1.04399194,3994.2,3993.6,1.75277]
[1733549967782,2.20392234,3994.1,3993.6,1.75277]
[1733549967982,0.86598279,3994.0,3993.6,1.75277]
[1733549968183,0.03890342,3993.9,3993.6,1.75277]
[1733549968523,1.04399194,3994.1,3993.6,1.75277]
[1733549968695,0.03887244,3993.8,3993.6,1.75277]
[1733549969042,0.03884146,3993.7,3993.6,1.75277]
[1733549969499,1.04399194,3994.1,3993.6,1.75277]
[1733549969828,0.90494254,3994.0,3993.6,1.75277]
[1733549970027,0.03889443,3994.0,3993.6,1.75277]
[1733549970683,0.03889443,3994.0,3993.7,1.75276]
[1733549971924,1.04399194,3994.2,3993.7,1.75276]
[1733549972157,0.03886345,3993.9,3993.7,1.75276]
[1733549972356,0.03883248,3993.8,3993.7,1.75276]
[1733549972512,1.04399194,3994.2,3993.7,1.75276]
[1733549972719,2.20401318,3994.1,3993.7,1.75276]
[1733549972920,0.86603511,3994.0,3993.7,1.75276]
[1733549973118,0.03886345,3993.9,3993.7,1.75276]
[1733549973356,1.04399194,3994.1,3993.7,1.75276]
[1733549973655,2.20392444,3994.0,3993.7,1.75276]
[1733549973841,0.03889443,3994.0,3993.7,1.75276]
[1733549975014,0.03889443,3994.0,3993.1,1.81039693]
[1733549975221,0.804,3993.8,3993.1,0.7662]
[1733549975545,2.20341086,3993.7,3993.1,1.753]
[1733549975745,2.16463479,3993.6,3993.1,1.753]
[1733549975942,0.90369207,3993.5,3993.1,1.753]
[1733549976128,0.03782634,3993.5,3993.1,1.753]
[1733549977258,0.03782634,3993.5,3992.9,1.75309]
[1733549977558,0.03782634,3993.5,3992.9,0.0125963]
[1733549977761,0.03782634,3993.5,3992.8,0.7804]
[1733549978562,1.04399194,3993.6,3992.8,0.7804]
[1733549978762,0.90300006,3993.5,3992.8,0.7804]
[1733549979061,0.0376331,3993.5,3993.0,1.75305]
[1733549979641,1.04399194,3993.7,3993.0,1.75305]
[1733549979840,0.03759879,3993.4,3993.0,1.75305]
[1733549980252,1.04399194,3993.7,3993.0,1.75305]
[1733549980569,0.7928,3993.3,3992.8,1.75315]
[1733549980735,0.03753681,3993.2,3992.8,1.75315]
[1733549980933,0.7928,3993.3,3992.8,1.75315]
[1733549981162,0.03754015,3993.2,3992.8,1.75315]
[1733549981370,0.7928,3993.3,3992.8,1.75315]
[1733549981672,0.03754015,3993.2,3992.8,1.75315]
[1733549982027,0.7928,3993.3,3992.8,1.75315]
[1733549982263,0.03750916,3993.1,3992.8,1.75315]
[1733549982472,0.03754015,3993.2,3992.8,1.75315]
[1733549982670,0.03747817,3993.0,3992.8,1.75315]
[1733549982830,0.7928,3993.3,3992.8,1.75315]
[1733549983032,0.03744718,3992.9,3992.6,1.75323]
[1733549983356,0.7928,3993.3,3992.6,1.75323]
[1733549983546,0.03751348,3993.2,3992.6,1.75323]
[1733549984339,0.03751348,3993.2,3992.0,1.7535]
[1733549984674,0.03751348,3993.2,3992.3,1.75336]
[1733549984675,0.86449182,3993.1,3992.3,1.75336]
[1733549984836,1.26893596,3993.2,3992.3,1.75336]
[1733549985038,0.0373882,3993.0,3992.3,1.75336]
[1733549985267,0.03727919,3993.1,3992.4,1.75332]
[1733549985539,0.0372482,3993.0,3992.4,1.75332]
[1733549986465,0.8298,3992.9,3992.1,1.75342]
[1733549986778,0.03693299,3992.8,3992.1,1.75342]
[1733549987162,0.03693299,3992.8,3991.8,1.75357]
[1733549987366,0.43990973,3992.8,3991.8,1.75357]
[1733549987956,0.43990973,3992.8,3991.9,1.75354]
[1733549988154,0.43990973,3992.8,3992.0,1.7535]
[1733549990259,0.43990973,3992.8,3991.8,1.75359]
[1733549992051,0.7888,3992.7,3991.7,0.8012]
[1733549992251,0.7888,3992.7,3991.9,1.75352]
[1733549992583,0.0367977,3992.6,3991.9,1.75352]
[1733549993103,0.0367977,3992.6,3991.9,0.01261133]
[1733549993245,0.0367977,3992.6,3991.7,1.16619538]
[1733549993451,0.0367977,3992.6,3992.0,1.7535]
[1733549997903,0.0367977,3992.6,3992.1,1.75345]
[1733550002102,0.0367977,3992.6,3991.9,1.75354]
[1733550005869,0.0367977,3992.6,3992.0,1.75346]
[1733550006567,0.0367977,3992.6,3992.1,1.75346]
[1733550007622,0.0367977,3992.6,3991.9,1.75355]
[1733550008564,0.0367977,3992.6,3991.7,0.8012]
[1733550008816,0.29466847,3992.6,3991.7,0.8012]
[1733550008977,0.7906,3992.5,3991.4,0.7645]
[1733550009306,0.03486704,3992.4,3991.7,1.75362]
[1733550011226,0.7906,3992.3,3991.5,1.75372]
[1733550011421,0.03466334,3992.2,3991.5,1.75372]
[1733550012121,0.03466334,3992.2,3991.6,1.75366]
[1733550012480,0.03466334,3992.2,3991.5,1.75372]
[1733550012715,0.03466334,3992.2,3991.6,1.75367]
[1733550014804,0.03466334,3992.2,3991.7,1.75362]
[1733550017687,0.03466334,3992.2,3991.8,0.01261646]
[1733550017890,0.03466334,3992.2,3991.8,0.758]
[1733550018192,0.8076,3992.6,3992.1,1.75346]
[1733550018728,0.8076,3992.6,3991.8,1.75356]
[1733550018729,0.83890953,3992.6,3991.8,1.75356]
[1733550019089,0.83890953,3992.6,3991.5,0.758]
[1733550019314,1.48866595,3992.6,3991.5,0.758]
[1733550019708,1.48866595,3992.6,3991.8,1.75359]
[1733550020991,0.0345846,3992.5,3991.8,1.75359]
[1733550021510,0.0345846,3992.5,3991.9,1.75352]
[1733550024292,0.86326966,3992.4,3991.9,1.75352]
[1733550024595,2.53265789,3992.6,3991.9,1.75352]
[1733550024596,0.0345226,3992.3,3991.9,1.75352]
[1733550024805,2.53265789,3992.6,3991.9,1.75352]
[1733550025120,2.77540771,3992.5,3991.9,1.75352]
[1733550025321,0.86327253,3992.4,3991.9,1.75352]
[1733550025505,0.61722639,3992.5,3991.9,1.75352]
[1733550025710,0.61722639,3992.5,3991.7,1.75362]
[1733550025711,0.8076,3992.2,3991.7,1.75362]
[1733550026235,0.03447725,3992.1,3991.4,0.758]
[1733550026438,1.85159194,3992.4,3991.8,1.75358]
[1733550026749,2.19344891,3992.3,3991.8,1.75358]
[1733550026911,0.03450593,3992.3,3991.8,1.75358]
[1733550027315,0.86375368,3992.2,3991.8,1.75358]
[1733550027533,1.07849787,3992.3,3991.8,1.75358]
[1733550027736,0.03444392,3992.1,3991.8,1.75358]
[1733550028040,0.03441292,3992.0,3991.8,1.75358]
[1733550028215,1.04399194,3992.3,3991.8,1.75358]
[1733550028540,2.19438413,3992.2,3991.8,1.75358]
[1733550028752,0.86396368,3992.1,3991.8,1.75358]
[1733550029049,1.04399194,3992.5,3992.3,1.75337]
[1733550029217,2.16006208,3992.4,3992.3,1.75337]
[1733550031231,3.20405402,3992.4,3992.3,1.75337]
[1733550031730,2.16006208,3992.4,3992.3,1.75337]
[1733550031934,3.23860097,3992.4,3992.3,1.75337]
[1733550032123,2.19460903,3992.4,3992.3,1.75337]
[1733550032327,2.19460903,3992.4,3992.3,2.695407]
[1733550032328,0.89857178,3992.4,3992.3,2.695407]
[1733550032533,0.06042817,3992.4,3992.0,1.05680401]
[1733550032706,0.06042817,3992.4,3991.8,1.04419693]
[1733550033058,0.06039782,3992.3,3992.1,1.75346]
[1733550033206,1.04399194,3992.5,3992.1,1.75346]
[1733550033537,0.92498658,3992.4,3992.1,1.75346]
[1733550033740,0.06042818,3992.4,3992.1,1.75346]
[1733550034147,1.82219194,3992.6,3991.8,0.7667]
[1733550034316,0.24865983,3992.3,3991.7,1.04419693]
[1733550034645,4.04380049,3992.2,3991.7,1.75363]
[1733550034813,3.20518636,3992.1,3991.5,2.52042]
[1733550035023,1.04399194,3991.9,3991.5,1.75372]
[1733550035342,0.9248243,3991.8,3991.5,1.75372]
[1733550035639,0.06029269,3991.8,3991.2,0.7667]
[1733550035842,1.04399194,3991.9,3991.6,1.75367]
[1733550036006,0.06026269,3991.8,3991.6,1.75367]
[1733550036206,1.04399194,3992.0,3991.6,1.75367]
[1733550036401,2.22087708,3991.9,3991.6,1.75367]
[1733550036608,0.06029305,3991.9,3991.6,1.75367]
[1733550037341,0.86415311,3991.8,3991.6,1.75367]
[1733550037541,0.06029305,3991.9,3991.6,1.75367]
[1733550037847,1.04399194,3992.0,3991.6,1.75367]
[1733550038060,0.06016302,3991.9,3991.6,1.75367]
[1733550038233,0.86410665,3991.8,3991.6,1.75367]
[1733550038543,0.06010229,3991.7,3991.6,1.75367]
[1733550038951,1.04399194,3992.0,3991.6,1.75367]
[1733550039111,0.06010229,3991.7,3991.6,1.75367]
[1733550039309,1.04399194,3991.9,3991.6,1.75367]
[1733550039549,0.06010229,3991.7,3991.6,1.75367]
[1733550039720,1.04399194,3992.0,3991.6,1.75367]
[1733550039918,0.06010229,3991.7,3991.6,1.75367]
[1733550040246,0.06010562,3991.7,3991.6,1.75367]
[1733550040548,1.04399194,3992.0,3991.3,1.75378]
[1733550040704,0.06010562,3991.7,3991.3,1.75378]
[1733550040905,1.04399194,3991.9,3991.4,1.75376]
[1733550041249,0.86411437,3991.8,3991.5,1.75371]
[1733550041447,0.06010562,3991.7,3991.5,1.75371]
[1733550041746,1.04399194,3992.0,3991.5,1.75371]
[1733550041905,0.06007525,3991.6,3991.5,1.75371]
[1733550042106,1.04399194,3992.0,3991.5,2.52041]
[1733550042305,0.06003189,3991.6,3991.5,2.52041]
[1733550042504,1.04399194,3992.0,3991.5,2.52041]
[1733550042746,0.06003189,3991.6,3991.5,2.52041]
[1733550042944,1.04399194,3991.9,3991.5,2.52041]
[1733550043145,0.06003189,3991.6,3991.5,2.52041]
[1733550043310,1.04399194,3992.0,3991.5,2.52041]
[1733550043644,2.15997818,3991.9,3991.5,2.52041]
[1733550043848,0.92408389,3991.8,3991.5,2.52041]
[1733550044036,0.06009262,3991.8,3991.5,2.52041]
[1733550044344,1.04399194,3991.9,3991.2,0.7667]
[1733550044534,0.06006225,3991.7,3991.4,1.75376]
[1733550044736,0.06010929,3991.8,3991.4,1.75376]
[1733550044944,0.06004855,3991.6,3991.4,1.75376]
[1733550045140,1.04399194,3991.9,3991.4,1.75376]
[1733550045447,0.86403668,3991.8,3991.4,1.75376]
[1733550045754,0.06007892,3991.7,3991.4,1.75376]
[1733550046121,1.04399194,3991.9,3991.4,1.75376]
[1733550046321,0.06004855,3991.6,3991.4,1.75376]
[1733550046547,1.04399194,3991.9,3991.4,1.75376]
[1733550046745,0.06001819,3991.5,3991.4,1.75376]
[1733550047460,1.04399194,3991.9,3991.4,1.75376]
[1733550047762,2.2192954,3991.8,3991.4,1.75376]
[1733550047929,0.86365331,3991.7,3991.4,1.75376]
[1733550048125,0.06010929,3991.8,3991.5,1.75371]
[1733550048332,0.86361756,3991.7,3991.5,1.75371]
[1733550048560,0.06010929,3991.8,3991.5,1.75371]
[1733550048781,0.06004855,3991.6,3991.5,1.75371]
[1733550048956,1.04399194,3991.9,3991.5,1.75371]
[1733550049162,0.06004855,3991.6,3991.5,1.75371]
[1733550049336,1.04399194,3991.9,3991.3,1.7538]
[1733550049538,0.06004855,3991.6,3991.3,1.7538]
[1733550049859,0.06001819,3991.5,3991.4,1.75376]
[1733550050061,1.04399194,3991.9,3991.4,1.75376]
[1733550050370,2.21904467,3991.8,3991.4,1.75376]
[1733550050545,0.86357415,3991.7,3991.4,1.75376]
[1733550050746,0.06010929,3991.8,3991.4,1.75376]
[1733550050985,0.06004855,3991.6,3991.5,1.75372]
[1733550051147,1.04399194,3991.9,3991.6,1.75368]
[1733550051467,2.15889968,3991.8,3991.6,1.75368]
[1733550051767,1.04399194,3991.9,3991.6,1.75368]
[1733550051969,2.15893128,3991.8,3991.6,1.75368]
[1733550052271,1.04399194,3991.9,3991.6,1.75368]
[1733550052565,2.158953,3991.8,3991.6,1.75368]
[1733550052730,0.86359358,3991.7,3991.6,1.75368]
[1733550052931,1.04399194,3991.9,3991.6,1.75368]
[1733550053249,2.15897765,3991.8,3991.6,1.75368]
[1733550053429,0.92356228,3991.7,3991.6,1.75368]
[1733550053975,0.05990885,3991.7,3991.6,1.75368]
[1733550054341,1.04399194,3991.9,3991.6,1.75368]
[1733550054570,0.05989552,3991.7,3991.6,1.75368]
[1733550054775,1.04399194,3992.0,3991.6,1.75368]
[1733550054950,0.05989552,3991.7,3991.6,1.75368]
[1733550055566,1.04399194,3992.0,3991.6,1.75368]
[1733550055756,0.05989552,3991.7,3991.6,1.75368]
[1733550056231,1.04399194,3992.0,3991.6,1.75368]
[1733550056426,2.21934978,3991.9,3991.6,1.75368]
[1733550056669,0.86375741,3991.8,3991.6,1.75368]
[1733550056831,0.05989552,3991.7,3991.6,1.75368]
[1733550057027,1.04399194,3992.0,3991.6,1.75368]
[1733550057270,2.21939333,3991.9,3991.6,1.75368]
[1733550057469,0.86377483,3991.8,3991.6,1.75368]
[1733550057658,0.05992219,3991.7,3991.6,1.75368]
[1733550057858,1.04399194,3992.0,3991.6,1.75368]
[1733550058037,2.21937191,3991.9,3991.6,1.75368]
[1733550058238,0.8637556,3991.8,3991.6,1.75368]
[1733550058490,0.05992219,3991.7,3991.6,1.75368]
[1733550058859,1.04399194,3992.0,3991.6,1.75368]
[1733550059056,0.92372392,3991.9,3991.6,1.75368]
[1733550059357,0.05998625,3991.9,3991.6,0.250888]
[1733550059558,0.05998625,3991.9,3991.8,3.59120242]
[1733550059966,0.02004046,3992.3,3992.2,1.75341]
[1733550060167,0.02004046,3992.3,3992.2,2.50861]
[1733550060633,0.08027821,3992.3,3992.2,2.50861]
[1733550060833,0.08027821,3992.3,3992.2,2.86771224]
[1733550061838,0.02004046,3992.3,3992.2,2.86771224]
[1733550062035,0.02004046,3992.3,3992.2,2.50861]
[1733550064271,0.080715,3992.3,3992.2,2.50861]
[1733550064474,0.02004046,3992.3,3992.2,1.75341]
[1733550064686,0.080715,3992.3,3992.2,1.75341]
[1733550064841,0.080715,3992.3,3991.8,0.7552]
[1733550065039,0.080715,3992.3,3992.0,1.75349]
[1733550065473,0.080715,3992.3,3991.8,1.75358]
[1733550066068,0.080715,3992.3,3991.6,1.75368]
[1733550066267,0.8077,3992.2,3991.6,1.75368]
[1733550066581,0.06050713,3992.1,3991.6,1.75368]
[1733550067679,0.06050713,3992.1,3991.5,0.756]
[1733550067893,0.06050713,3992.1,3991.5,2.50972]
[1733550068546,0.06050713,3992.1,3991.8,1.75359]
[1733550071686,0.06050713,3992.1,3992.0,1.7535]
[1733550071990,0.02004046,3992.3,3992.1,1.75344]
[1733550073547,0.8166,3992.2,3991.7,1.75363]
[1733550073771,2.15798144,3992.1,3991.7,1.75363]
[1733550073975,0.86324478,3992.0,3991.7,1.75363]
[1733550074185,1.86059194,3992.2,3991.2,2.83626242]
[1733550074496,3.20201789,3992.1,3991.2,1.08241242]
[1733550074674,2.15802672,3992.0,3991.5,1.75371]
[1733550074848,1.04399194,3992.1,3991.5,1.75371]
[1733550075043,2.21832089,3992.0,3991.3,1.7538]
[1733550075275,2.15803275,3991.9,3991.3,1.7538]
[1733550075482,0.92334762,3991.8,3991.3,1.7538]
[1733550075782,0.06015263,3991.8,3991.3,1.7538]
[1733550076288,0.8631928,3991.7,3991.3,1.7538]
[1733550076593,0.87669189,3991.6,3991.1,2.57989]
[1733550077092,0.8166,3991.6,3991.1,1.75389]
[1733550077294,1.15938104,3991.6,3991.1,1.75389]
[1733550077470,0.05986813,3991.5,3991.1,1.75389]
[1733550079199,0.86309158,3991.4,3990.8,1.90841242]
[1733550079377,1.10386007,3991.5,3990.8,1.754]
[1733550079552,0.05970733,3991.3,3990.9,1.75398]
[1733550079757,1.04399194,3991.5,3990.9,1.75398]
[1733550079953,0.05967696,3991.2,3990.9,1.75398]
[1733550080359,1.04399194,3991.5,3990.9,1.75398]
[1733550080657,2.50031867,3991.4,3990.5,0.826]
[1733550080871,0.86301505,3991.3,3990.7,1.75406]
[1733550081076,0.05967398,3991.3,3990.7,1.75406]
[1733550081368,0.05967398,3991.3,3990.8,1.75402]
[1733550081988,0.05967398,3991.3,3991.0,1.75391]
[1733550082177,0.05967398,3991.3,3990.7,1.08241242]
[1733550082378,0.8166,3991.3,3990.9,1.75395]
[1733550082697,2.21618333,3991.2,3989.9,1.87019693]
[1733550082902,3.20067684,3991.1,3990.3,1.75425]
[1733550083058,2.21605663,3991.0,3990.3,1.75425]
[1733550083255,0.05941942,3991.0,3990.3,1.75425]
[1733550083863,0.05941942,3991.0,3990.4,1.7542]
[1733550084206,0.86218328,3990.9,3990.4,1.7542]
[1733550084512,0.40814241,3991.0,3990.4,1.7542]
[1733550084712,0.05938905,3990.9,3990.4,1.7542]
[1733550085082,0.05938905,3990.9,3990.5,1.75416]
[1733550086285,1.86059194,3991.3,3990.5,1.75416]
[1733550086608,1.64808538,3991.2,3990.5,1.75416]
[1733550086792,0.78662231,3991.2,3990.5,1.75416]
[1733550087734,0.86130284,3991.1,3990.5,1.75416]
[1733550088023,1.83061425,3991.2,3990.5,1.75416]
[1733550088184,2.15302723,3991.1,3990.5,1.08241242]
[1733550088385,1.10329864,3991.2,3990.5,1.08241242]
[1733550088386,0.0593067,3991.2,3991.1,1.7539]
[1733550088895,0.7887,3991.6,3991.3,1.75379]
[1733550089293,0.86123769,3991.5,3991.3,1.75379]
[1733550089492,0.7887,3991.6,3991.3,1.75379]
[1733550089706,0.86124424,3991.5,3991.3,1.75379]
[1733550089905,0.05924768,3991.5,3991.3,1.75379]
[1733550092696,0.05924768,3991.5,3991.0,1.75391]
[1733550092929,0.05924768,3991.5,3990.7,1.75404]
[1733550093314,0.05924768,3991.5,3990.9,1.75395]
[1733550096073,0.37760775,3991.5,3990.9,1.75395]
[1733550096500,0.37760775,3991.5,3991.0,1.75394]
[1733550096706,0.05924768,3991.5,3991.0,1.75394]
[1733550098407,0.05924768,3991.5,3991.1,1.7539]
[1733550098953,0.05924768,3991.5,3990.0,1.75437]
[1733550098954,0.815,3991.4,3990.0,0.7683]
[1733550099114,0.815,3991.4,3990.7,1.75406]
[1733550099313,0.87434074,3991.4,3990.7,1.75406]
[1733550099847,0.87434074,3991.4,3990.1,1.08241242]
[1733550099848,0.87434074,3991.4,3990.8,1.75403]
[1733550100011,0.19183327,3991.3,3990.8,1.75403]
[1733550100451,0.0592867,3991.2,3990.8,1.75403]
[1733550100832,0.19183327,3991.3,3990.8,1.75403]
[1733550101058,0.05917959,3991.1,3990.8,1.75403]
[1733550101248,0.05920996,3991.2,3990.8,1.754]
[1733550101543,0.815,3991.4,3990.8,1.754]
[1733550101750,0.05917959,3991.1,3990.8,1.754]
[1733550101950,0.815,3991.4,3990.8,1.754]
[1733550102247,0.815,3991.4,3990.6,0.7683]
[1733550102248,0.815,3991.4,3991.1,1.75389]
[1733550104346,0.815,3991.4,3990.6,2.52238]
[1733550104347,0.059257,3991.3,3990.9,1.75398]
[1733550106357,0.09057716,3991.3,3990.9,1.75398]
[1733550106513,0.31028244,3991.3,3990.9,1.75398]
[1733550106713,0.09057716,3991.3,3990.9,1.75398]
[1733550107053,0.059257,3991.3,3990.9,1.75398]
[1733550108134,0.059257,3991.3,3991.0,1.75393]
[1733550108662,0.059257,3991.3,3990.6,1.75408]
[1733550108867,0.059257,3991.3,3991.2,1.75385]
[1733550109363,0.815,3991.7,3990.9,0.7683]
[1733550109652,0.815,3991.7,3991.3,1.75379]
[1733550109875,0.815,3991.7,3990.9,1.85071242]
[1733550110041,1.5672185,3992.1,3990.9,1.85071242]
[1733550110042,0.815,3992.1,3990.9,1.86333917]
[1733550110361,1.08241242,3991.0,3990.5,0.7683]
[1733550110676,0.18974124,3990.9,3990.3,1.75422]
[1733550110969,0.18974124,3990.9,3990.4,1.75419]
[1733550111126,0.815,3991.1,3990.4,1.75419]
[1733550111465,0.0593527,3991.0,3990.4,1.75419]
[1733550113281,0.0593527,3991.0,3990.1,2.52262]
[1733550113560,0.0593527,3991.0,3990.9,1.89911242]
[1733550113860,0.0593527,3991.0,3990.9,2.26442566]
[1733550114025,0.7674,3992.0,3991.1,1.7539]
[1733550114226,0.7674,3992.0,3991.5,1.75371]
[1733550115046,0.057566,3991.9,3991.0,1.75394]
[1733550115279,0.24446179,3991.9,3991.0,1.75394]
[1733550115485,0.24446179,3991.9,3991.6,1.75367]
[1733550115486,0.057566,3991.9,3991.6,1.75367]
[1733550118759,0.0575423,3991.8,3991.6,1.75367]
[1733550119135,0.057566,3991.9,3991.6,1.75367]
[1733550121372,0.05778246,3991.8,3991.6,1.75367]
[1733550122973,0.05778246,3991.8,3991.4,1.75376]
[1733550123939,0.05778246,3991.8,3991.1,1.75387]
[1733550124164,0.05778246,3991.8,3991.2,1.75384]
[1733550126045,0.05778246,3991.8,3990.4,1.57345354]
[1733550126046,0.8148,3991.6,3990.6,0.7544]
[1733550126268,0.86234273,3991.5,3990.7,1.75406]
[1733550126473,0.86227661,3991.4,3990.7,1.75406]
[1733550126700,0.05784147,3991.5,3990.7,1.75406]
[1733550127010,0.05771771,3991.4,3990.7,1.75406]
[1733550128082,0.8148,3991.2,3990.7,1.75406]
[1733550128485,0.05762659,3991.1,3990.7,1.75406]
[1733550132219,0.05762659,3991.1,3990.3,0.7544]
[1733550132220,0.05762659,3991.1,3990.8,1.75402]
[1733550132379,0.05762659,3991.1,3990.9,0.766]
[1733550132580,1.81731489,3991.5,3990.9,0.766]
[1733550132816,0.05750615,3991.0,3990.9,0.766]
[1733550133016,1.81731489,3991.5,3990.9,0.766]
[1733550133226,0.05750615,3991.0,3990.9,0.766]
[1733550133438,1.04321489,3991.4,3990.9,0.766]
[1733550133588,0.0574261,3991.0,3990.9,0.766]
[1733550133812,0.7741,3990.9,3989.8,1.04896903]
[1733550134025,0.7741,3990.9,3989.0,0.766]
[1733550134026,0.7741,3990.3,3989.0,2.33945354]
[1733550134322,1.04335122,3990.1,3989.3,1.75467]
[1733550134517,0.9195308,3990.0,3989.4,1.75463]
[1733550134748,0.05706889,3990.0,3989.4,1.75463]
[1733550134963,1.81745122,3990.3,3989.0,0.77865017]
[1733550135118,3.25564708,3990.2,3989.6,0.766]
[1733550135321,0.05699623,3990.2,3989.9,1.75441]
[1733550135535,1.04335122,3990.7,3989.8,0.766]
[1733550135718,0.05696429,3990.6,3990.1,1.75431]
[1733550135921,1.04335122,3990.9,3990.2,0.01263867]
[1733550136142,0.9187541,3990.8,3990.1,1.75431]
[1733550136429,0.05680147,3990.8,3990.1,1.75431]
[1733550136926,0.05680147,3990.8,3990.2,0.55]
[1733550137127,1.04335122,3990.9,3990.2,0.55]
[1733550137339,0.91869197,3990.8,3990.2,0.55]
[1733550137541,0.05680147,3990.8,3990.2,0.55]
[1733550137740,1.81745122,3991.0,3990.2,0.55]
[1733550137942,1.81745122,3991.0,3989.9,0.55]
[1733550137943,3.25476528,3990.9,3989.9,0.55]
[1733550138144,2.15458221,3990.8,3989.9,2.30442]
[1733550138335,0.91860397,3990.7,3989.9,2.30442]
[1733550138535,0.05677109,3990.7,3989.9,2.30442]
[1733550138735,1.04335122,3990.9,3989.9,2.30442]
[1733550138917,2.2110257,3990.8,3989.9,2.611462]
[1733550139121,0.05673807,3990.8,3989.9,2.611462]
[1733550139555,0.05673807,3990.8,3989.9,0.857042]
[1733550139760,1.81745122,3991.0,3990.1,0.55]
[1733550139966,0.91841958,3990.9,3990.1,0.55]
[1733550140175,0.05677515,3990.9,3990.1,0.55]
[1733550140452,0.86163818,3990.8,3990.1,0.55]
[1733550140656,0.05677515,3990.9,3990.1,0.55]
[1733550140865,0.05671439,3990.7,3990.1,0.55]
[1733550141026,0.05674477,3990.8,3990.1,0.55]